[Event "Open NK Rapid 2025"]
[Site "Helmond, Netherlands"]
[Date "2025.05.03"]
[Round "4.23"]
[White "Duong, Ralf"]
[Black "Van Batenburg, Mees"]
[Result "0-1"]
[TimeControl "15+5"]
[WhiteFideId "40100197"]
[BlackFideId "1078259"]
[WhiteElo "1844"]
[BlackElo "2217"]

1. b3 {[%clk 00:15:09]} e5 {[%clk 00:15:09]} {[%emt 00:00:02]} 2. Bb2 {[%clk
00:15:13]} Nc6 {[%clk 00:15:13]} {[%emt 00:00:01]} 3. e3 {[%clk 00:15:17]}
{[%emt 00:00:01]} d5 {[%clk 00:15:16]} {[%emt 00:00:01]} 4. Bb5 {[%clk
00:15:21]} {[%emt 00:00:02]} Nge7 {[%clk 00:15:20]} {[%emt 00:00:01]} 5. Bxe5
{[%clk 00:15:20]} {[%emt 00:00:05]} a6 {[%clk 00:15:24]} {[%emt 00:00:02]} 6.
Bxc6+ {[%clk 00:15:23]} {[%emt 00:00:02]} Nxc6 {[%clk 00:15:28]} {[%emt
00:00:01]} 7. Bg3 {[%emt 00:00:06]} h5 {[%emt 00:00:03]} 8. h4 {[%clk
00:15:25]} d4 {[%clk 00:15:35]} {[%emt 00:00:02]} 9. Qe2 {[%clk 00:14:38]}
{[%emt 00:00:52]} d3 {[%clk 00:14:35]} {[%emt 00:01:04]} 10. Qxd3 {[%clk
00:14:24]} {[%emt 00:00:19]} Qxd3 {[%clk 00:14:19]} {[%emt 00:00:21]} 11. cxd3
{[%clk 00:14:28]} {[%emt 00:00:02]} Nb4 {[%clk 00:14:22]} {[%emt 00:00:02]} 12.
Nc3 {[%clk 00:14:13]} {[%emt 00:00:20]} Nc2+ {[%clk 00:14:25]} {[%emt
00:00:03]} 13. Kd1 {[%clk 00:14:09]} {[%emt 00:00:09]} Nxa1 {[%clk 00:14:28]}
{[%emt 00:00:02]} 14. Kc1 {[%clk 00:12:40]} {[%emt 00:01:33]} Bf5 {[%clk
00:13:58]} {[%emt 00:00:34]} 15. e4 {[%clk 00:12:16]} {[%emt 00:00:30]} Be6
{[%clk 00:14:02]} 16. Kb2 {[%clk 00:12:02]} {[%emt 00:00:18]} Nxb3 {[%clk
00:14:01]} {[%emt 00:00:05]} 17. axb3 {[%clk 00:12:06]} {[%emt 00:00:03]} Bd6
{[%clk 00:14:02]} {[%emt 00:00:04]} 18. f4 {[%clk 00:11:44]} {[%emt 00:00:27]}
O-O-O {[%clk 00:13:55]} {[%emt 00:00:10]} 19. Nge2 {[%clk 00:11:27]} {[%emt
00:00:24]} Bg4 {[%clk 00:13:36]} {[%emt 00:00:23]} 20. Kc2 {[%clk 00:11:15]}
{[%emt 00:00:18]} Bc5 {[%clk 00:13:38]} {[%emt 00:00:02]} 21. f5 {[%clk
00:10:53]} {[%emt 00:00:27]} Rh6 {[%clk 00:13:01]} {[%emt 00:00:42]} 22. Nf4
{[%clk 00:10:12]} {[%emt 00:00:46]} Bd4 {[%clk 00:12:37]} {[%emt 00:00:29]} 23.
Rf1 {[%clk 00:09:26]} {[%emt 00:00:51]} b5 {[%clk 00:12:22]} {[%emt 00:00:21]}
24. Nfd5 {[%clk 00:08:04]} {[%emt 00:01:27]} c6 {[%clk 00:12:20]} {[%emt
00:00:07]} 25. Nb4 {[%clk 00:07:50]} {[%emt 00:00:19]} Kb7 {[%clk 00:12:23]}
{[%emt 00:00:01]} 26. Ra1 {[%clk 00:07:20]} {[%emt 00:00:36]} c5 {[%clk
00:12:19]} {[%emt 00:00:10]} 27. Nbd5 {[%clk 00:07:16]} {[%emt 00:00:09]} b4
{[%clk 00:12:22]} {[%emt 00:00:01]} 28. Ra5 {[%clk 00:06:55]} {[%emt 00:00:26]}
bxc3 {[%clk 00:12:16]} {[%emt 00:00:09]} 29. dxc3 {[%clk 00:06:59]} {[%emt
00:00:03]} Bg1 {[%clk 00:11:12]} {[%emt 00:01:08]} 30. Be5 {[%clk 00:05:33]}
{[%emt 00:01:31]} Bxf5 {[%clk 00:10:57]} {[%emt 00:00:21]} 31. Bxg7 {[%clk
00:05:13]} {[%emt 00:00:24]} Rg6 {[%clk 00:11:00]} {[%emt 00:00:02]} 32. Bf6
{[%clk 00:05:14]} {[%emt 00:00:05]} Rxg2+ {[%clk 00:11:02]} {[%emt 00:00:03]}
33. Kc1 {[%clk 00:05:09]} {[%emt 00:00:10]} Rxd5 {[%clk 00:10:59]} {[%emt
00:00:07]} 34. exd5 {[%clk 00:05:11]} {[%emt 00:00:04]} Be3+ {[%clk 00:10:57]}
{[%emt 00:00:07]} 35. Kd1 {[%clk 00:05:01]} {[%emt 00:00:14]} Bg4+ {[%clk
00:10:59]} {[%emt 00:00:04]} 36. Ke1 {[%clk 00:05:03]} {[%emt 00:00:03]} Rg1#
{[%emt 00:00:17]} 0-1

[Event "Open NK Rapid 2025"]
[Site "Helmond, Netherlands"]
[Date "2025.05.03"]
[Round "4.24"]
[White "Ruben, Berend"]
[Black "Sosef, Noah"]
[Result "1-0"]
[TimeControl "15+5"]
[WhiteFideId "1084682"]
[BlackFideId "40107060"]
[WhiteElo "2074"]
[BlackElo "1835"]

1. e4 {[%clk 00:15:07]} {[%emt 00:00:03]} c5 {[%clk 00:15:09]} {[%emt
00:00:02]} 2. Nf3 {[%clk 00:15:10]} {[%emt 00:00:01]} d6 {[%clk 00:15:13]}
{[%emt 00:00:01]} 3. d4 {[%clk 00:15:14]} cxd4 {[%clk 00:15:17]} {[%emt
00:00:01]} 4. Nxd4 {[%clk 00:15:18]} {[%emt 00:00:01]} Nf6 {[%clk 00:15:21]} 5.
Nc3 {[%clk 00:15:22]} {[%emt 00:00:02]} g6 {[%clk 00:15:25]} {[%emt 00:00:01]}
6. Be3 {[%clk 00:15:18]} {[%emt 00:00:08]} Bg7 {[%clk 00:15:29]} {[%emt
00:00:02]} 7. f3 {[%clk 00:15:13]} {[%emt 00:00:09]} O-O {[%clk 00:15:31]}
{[%emt 00:00:03]} 8. Qd2 {[%clk 00:15:15]} {[%emt 00:00:04]} Nc6 {[%clk
00:15:30]} {[%emt 00:00:06]} 9. g4 {[%clk 00:15:04]} {[%emt 00:00:15]} Qa5
{[%clk 00:15:25]} {[%emt 00:00:11]} 10. Nb3 {[%clk 00:14:38]} {[%emt 00:00:31]}
Qd8 {[%clk 00:15:21]} {[%emt 00:00:09]} 11. O-O-O {[%clk 00:14:17]} {[%emt
00:00:25]} Be6 {[%clk 00:15:22]} {[%emt 00:00:07]} 12. Bh6 {[%clk 00:13:54]}
{[%emt 00:00:26]} Rc8 {[%clk 00:14:55]} {[%emt 00:00:32]} 13. Bxg7 {[%clk
00:13:54]} {[%emt 00:00:04]} Kxg7 {[%clk 00:14:58]} {[%emt 00:00:03]} 14. h4
{[%clk 00:13:50]} {[%emt 00:00:08]} Bxb3 {[%clk 00:14:51]} {[%emt 00:00:12]} 15.
axb3 {[%clk 00:13:50]} {[%emt 00:00:06]} Qa5 {[%clk 00:14:54]} {[%emt
00:00:02]} 16. Kb1 {[%clk 00:11:20]} {[%emt 00:02:35]} h5 {[%clk 00:12:58]}
{[%emt 00:02:00]} 17. g5 {[%clk 00:11:15]} {[%emt 00:00:11]} Nd7 {[%clk
00:13:01]} {[%emt 00:00:02]} 18. Qd5 {[%clk 00:10:32]} {[%emt 00:00:48]} Qxd5
{[%clk 00:11:58]} {[%emt 00:01:08]} 19. Nxd5 {[%clk 00:10:33]} {[%emt
00:00:03]} Nb6 {[%clk 00:11:52]} {[%emt 00:00:11]} 20. Nxb6 {[%clk 00:10:24]}
{[%emt 00:00:14]} axb6 {[%emt 00:00:03]} 21. Bh3 {[%clk 00:10:05]} {[%emt
00:00:22]} Ra8 {[%clk 00:11:29]} {[%emt 00:00:33]} 22. c3 {[%clk 00:10:07]}
{[%emt 00:00:03]} Rfd8 {[%clk 00:09:40]} {[%emt 00:01:54]} 23. f4 {[%clk
00:10:02]} {[%emt 00:00:10]} Rf8 {[%clk 00:07:26]} {[%emt 00:02:19]} 24. f5
{[%clk 00:09:39]} {[%emt 00:00:27]} Ne5 {[%clk 00:07:15]} {[%emt 00:00:17]} 25.
f6+ {[%clk 00:09:13]} {[%emt 00:00:30]} exf6 {[%clk 00:07:12]} {[%emt
00:00:09]} 26. gxf6+ {[%clk 00:09:16]} {[%emt 00:00:02]} Kxf6 {[%emt 00:00:08]}
27. Rxd6+ {[%clk 00:09:14]} {[%emt 00:00:01]} Kg7 {[%clk 00:07:03]} {[%emt
00:00:17]} 28. Rxb6 {[%clk 00:08:55]} {[%emt 00:00:23]} Rab8 {[%clk 00:06:26]}
{[%emt 00:00:43]} 29. Rb5 {[%clk 00:08:11]} {[%emt 00:00:49]} Nf3 {[%clk
00:06:14]} {[%emt 00:00:16]} 30. Bg2 {[%clk 00:08:09]} {[%emt 00:00:07]} Nd2+
{[%clk 00:05:46]} {[%emt 00:00:33]} 31. Kc2 {[%clk 00:08:09]} {[%emt 00:00:05]}
Rfd8 {[%clk 00:05:46]} {[%emt 00:00:05]} 32. Rd1 {[%clk 00:07:46]} {[%emt
00:00:28]} 1-0

[Event "Open NK Rapid 2025"]
[Site "Helmond, Netherlands"]
[Date "2025.05.03"]
[Round "4.25"]
[White "Geboers, Jimmy"]
[Black "Aalberts, Jos"]
[Result "1-0"]
[TimeControl "15+5"]
[WhiteFideId "262919"]
[BlackFideId "1093541"]
[WhiteElo "2065"]
[BlackElo "1831"]

1. d4 {[%clk 00:15:09]} {[%emt 00:00:01]} e6 {[%clk 00:15:03]} {[%emt
00:00:07]} 2. c4 {[%clk 00:15:08]} {[%emt 00:00:06]} d5 {[%clk 00:15:06]}
{[%emt 00:00:01]} 3. Nc3 {[%clk 00:15:11]} {[%emt 00:00:02]} Nf6 {[%clk
00:15:08]} {[%emt 00:00:04]} 4. e3 {[%clk 00:15:12]} {[%emt 00:00:03]} Be7
{[%clk 00:15:02]} {[%emt 00:00:11]} 5. Nf3 {[%clk 00:15:10]} {[%emt 00:00:06]}
Nbd7 {[%clk 00:15:05]} {[%emt 00:00:04]} 6. Bd3 {[%clk 00:15:13]} {[%emt
00:00:02]} c5 {[%clk 00:15:03]} {[%emt 00:00:07]} 7. cxd5 {[%clk 00:15:09]}
{[%emt 00:00:08]} exd5 {[%clk 00:14:59]} {[%emt 00:00:08]} 8. dxc5 {[%clk
00:15:10]} {[%emt 00:00:06]} Nxc5 {[%clk 00:15:00]} {[%emt 00:00:04]} 9. Bb5+
{[%clk 00:15:12]} {[%emt 00:00:03]} Bd7 {[%clk 00:14:49]} {[%emt 00:00:16]} 10.
Bxd7+ {[%clk 00:14:54]} {[%emt 00:00:22]} Qxd7 {[%clk 00:14:42]} {[%emt
00:00:13]} 11. O-O {[%clk 00:13:54]} {[%emt 00:01:04]} O-O-O {[%clk 00:14:35]}
{[%emt 00:00:12]} 12. Qc2 {[%clk 00:13:37]} {[%emt 00:00:21]} Kb8 {[%clk
00:14:12]} {[%emt 00:00:30]} 13. b3 {[%clk 00:12:28]} {[%emt 00:01:14]} Rc8
{[%clk 00:13:07]} {[%emt 00:01:09]} 14. Bb2 {[%clk 00:12:15]} {[%emt 00:00:18]}
Nce4 {[%clk 00:11:31]} {[%emt 00:01:42]} 15. Qd3 {[%clk 00:12:04]} {[%emt
00:00:14]} Qf5 {[%clk 00:08:51]} {[%emt 00:02:47]} 16. Rfd1 {[%clk 00:11:27]}
{[%emt 00:00:42]} Rhd8 {[%clk 00:08:21]} {[%emt 00:00:35]} 17. Rac1 {[%clk
00:11:19]} {[%emt 00:00:12]} Qh5 {[%clk 00:08:15]} {[%emt 00:00:12]} 18. Qd4
{[%clk 00:10:44]} {[%emt 00:00:35]} Nxc3 {[%clk 00:06:54]} {[%emt 00:01:31]} 19.
Bxc3 {[%clk 00:09:51]} {[%emt 00:00:58]} Ne4 {[%clk 00:06:45]} {[%emt
00:00:14]} 20. Qe5+ {[%clk 00:09:40]} {[%emt 00:00:14]} Qxe5 {[%clk 00:06:34]}
{[%emt 00:00:18]} 21. Bxe5+ {[%clk 00:09:42]} {[%emt 00:00:02]} Bd6 {[%clk
00:06:16]} {[%emt 00:00:25]} 22. Bxg7 {[%clk 00:08:51]} {[%emt 00:00:54]} Rxc1
{[%clk 00:05:32]} {[%emt 00:00:49]} 23. Rxc1 {[%clk 00:08:54]} {[%emt
00:00:02]} Nc5 {[%clk 00:03:55]} {[%emt 00:01:43]} 24. Ne5 {[%clk 00:08:12]}
{[%emt 00:00:47]} Ne6 {[%clk 00:03:27]} {[%emt 00:00:33]} 25. Nxf7 {[%clk
00:08:04]} {[%emt 00:00:11]} Rd7 {[%clk 00:03:18]} {[%emt 00:00:15]} 26. Nxd6
{[%clk 00:08:02]} {[%emt 00:00:07]} Rxg7 {[%clk 00:03:22]} {[%emt 00:00:01]} 27.
Rc8# {[%clk 00:07:26]} {[%emt 00:00:35]} 1-0

[Event "Open NK Rapid 2025"]
[Site "Helmond, Netherlands"]
[Date "2025.05.03"]
[Round "5.1"]
[White "Schneider, Ilja"]
[Black "Fridman, Daniel"]
[Result "1-0"]
[TimeControl "15+5"]
[WhiteFideId "4663306"]
[BlackFideId "11600454"]
[WhiteElo "2438"]
[BlackElo "2539"]

1. e4 {[%clk 00:15:08]} {[%emt 00:00:01]} e6 {[%clk 00:15:08]} {[%emt
00:00:01]} 2. d4 {[%clk 00:15:12]} {[%emt 00:00:02]} d5 {[%clk 00:15:12]}
{[%emt 00:00:01]} 3. exd5 {[%clk 00:15:16]} exd5 {[%clk 00:15:16]} {[%emt
00:00:01]} 4. Nf3 {[%clk 00:15:19]} {[%emt 00:00:01]} Nf6 {[%clk 00:15:19]}
{[%emt 00:00:03]} 5. Bd3 {[%clk 00:15:23]} {[%emt 00:00:01]} Bd6 {[%clk
00:15:22]} {[%emt 00:00:02]} 6. Qe2+ {[%clk 00:15:27]} {[%emt 00:00:01]} Be6
{[%clk 00:15:21]} {[%emt 00:00:06]} 7. Ng5 {[%clk 00:15:31]} {[%emt 00:00:01]}
Qe7 {[%clk 00:15:24]} {[%emt 00:00:02]} 8. Nxe6 {[%clk 00:15:34]} {[%emt
00:00:02]} fxe6 {[%clk 00:15:26]} {[%emt 00:00:02]} 9. c3 {[%clk 00:15:38]}
{[%emt 00:00:02]} e5 {[%clk 00:15:01]} {[%emt 00:00:29]} 10. dxe5 {[%clk
00:15:42]} {[%emt 00:00:02]} Qxe5 {[%clk 00:15:03]} {[%emt 00:00:03]} 11. Qxe5+
{[%clk 00:15:44]} {[%emt 00:00:03]} Bxe5 {[%clk 00:15:06]} {[%emt 00:00:02]} 12.
Nd2 {[%clk 00:15:30]} {[%emt 00:00:19]} O-O {[%clk 00:15:07]} {[%emt 00:00:04]}
13. Nf3 {[%clk 00:15:29]} {[%emt 00:00:07]} Bd6 {[%clk 00:15:10]} {[%emt
00:00:01]} 14. O-O {[%clk 00:15:21]} {[%emt 00:00:13]} Nbd7 {[%clk 00:15:13]}
{[%emt 00:00:02]} 15. Bg5 {[%clk 00:14:38]} {[%emt 00:00:48]} Nc5 {[%clk
00:14:45]} {[%emt 00:00:33]} 16. Bc2 {[%clk 00:14:36]} {[%emt 00:00:06]} Ne6
{[%clk 00:13:54]} {[%emt 00:00:55]} 17. Bxf6 {[%clk 00:12:28]} {[%emt
00:02:15]} Rxf6 {[%clk 00:13:56]} {[%emt 00:00:03]} 18. Rad1 {[%clk 00:12:31]}
{[%emt 00:00:01]} Nf4 {[%clk 00:07:46]} {[%emt 00:06:15]} 19. g3 {[%clk
00:11:13]} {[%emt 00:01:23]} Nh3+ {[%clk 00:06:17]} {[%emt 00:01:34]} 20. Kg2
{[%clk 00:11:17]} {[%emt 00:00:02]} Raf8 {[%clk 00:06:18]} {[%emt 00:00:04]} 21.
Rd3 {[%clk 00:10:12]} {[%emt 00:01:10]} Bc5 {[%clk 00:06:21]} {[%emt 00:00:03]}
22. Rxd5 {[%clk 00:08:05]} {[%emt 00:02:11]} Rxf3 {[%clk 00:02:11]} {[%emt
00:04:15]} 23. Bb3 {[%clk 00:08:09]} {[%emt 00:00:01]} Kh8 {[%clk 00:02:14]}
{[%emt 00:00:02]} 24. Rxc5 {[%clk 00:07:57]} {[%emt 00:00:17]} Rxf2+ {[%clk
00:02:16]} {[%emt 00:00:03]} 25. Rxf2 {[%clk 00:08:01]} Nxf2 {[%clk 00:02:19]}
{[%emt 00:00:02]} 26. Rxc7 {[%clk 00:07:52]} {[%emt 00:00:14]} Ng4 {[%clk
00:02:11]} {[%emt 00:00:12]} 27. Rxb7 {[%clk 00:07:25]} {[%emt 00:00:33]} h5
{[%clk 00:01:48]} {[%emt 00:00:28]} 28. Bf7 {[%clk 00:06:52]} {[%emt 00:00:38]}
g5 {[%clk 00:00:48]} {[%emt 00:01:05]} 29. Re7 {[%clk 00:06:21]} {[%emt
00:00:36]} Nf6 {[%clk 00:00:40]} {[%emt 00:00:13]} 30. c4 {[%clk 00:05:52]}
{[%emt 00:00:34]} Rd8 {[%clk 00:00:43]} {[%emt 00:00:02]} 31. c5 {[%clk
00:05:44]} {[%emt 00:00:14]} Rd2+ {[%clk 00:00:42]} {[%emt 00:00:06]} 32. Kf3
{[%clk 00:05:47]} {[%emt 00:00:01]} Rc2 {[%clk 00:00:16]} {[%emt 00:00:31]} 33.
b4 {[%clk 00:05:33]} {[%emt 00:00:19]} a5 {[%clk 00:00:07]} {[%emt 00:00:14]}
34. bxa5 {[%clk 00:05:30]} {[%emt 00:00:08]} Rxc5 {[%clk 00:00:10]} {[%emt
00:00:02]} 35. a6 {[%clk 00:05:34]} {[%emt 00:00:02]} Rc3+ {[%clk 00:00:10]}
{[%emt 00:00:04]} 36. Ke2 {[%clk 00:05:30]} {[%emt 00:00:07]} Ra3 {[%clk
00:00:11]} {[%emt 00:00:06]} 37. a7 {[%clk 00:05:34]} Kg7 {[%clk 00:00:12]}
{[%emt 00:00:04]} 38. Bd5+ {[%clk 00:05:01]} {[%emt 00:00:38]} 1-0

[Event "Open NK Rapid 2025"]
[Site "Helmond, Netherlands"]
[Date "2025.05.03"]
[Round "5.2"]
[White "Warmerdam, Max"]
[Black "Dgebuadze, Alexandre"]
[Result "1-0"]
[TimeControl "15+5"]
[WhiteFideId "1048104"]
[BlackFideId "203882"]
[WhiteElo "2517"]
[BlackElo "2454"]

1. Nf3 {[%clk 00:15:07]} {[%emt 00:00:02]} d6 {[%clk 00:15:04]} {[%emt
00:00:07]} 2. d4 {[%clk 00:15:11]} {[%emt 00:00:02]} Nf6 {[%clk 00:15:07]}
{[%emt 00:00:02]} 3. c4 {[%clk 00:15:14]} {[%emt 00:00:01]} g6 {[%clk
00:15:11]} {[%emt 00:00:01]} 4. Nc3 {[%clk 00:15:17]} {[%emt 00:00:02]} Bf5
{[%clk 00:15:14]} {[%emt 00:00:02]} 5. Qb3 {[%clk 00:15:20]} {[%emt 00:00:02]}
Qc8 {[%clk 00:15:17]} {[%emt 00:00:02]} 6. h3 {[%clk 00:15:21]} {[%emt
00:00:04]} Nc6 {[%clk 00:15:05]} {[%emt 00:00:17]} 7. d5 {[%clk 00:14:34]}
{[%emt 00:00:52]} Nb8 {[%clk 00:14:59]} {[%emt 00:00:12]} 8. Nd4 {[%clk
00:14:12]} {[%emt 00:00:27]} Bd7 {[%clk 00:14:50]} {[%emt 00:00:13]} 9. e4
{[%clk 00:14:14]} {[%emt 00:00:03]} Bg7 {[%clk 00:14:49]} {[%emt 00:00:07]} 10.
Be3 {[%clk 00:14:16]} {[%emt 00:00:02]} O-O {[%clk 00:14:27]} {[%emt 00:00:27]}
11. Be2 {[%clk 00:14:19]} {[%emt 00:00:02]} Na6 {[%clk 00:14:14]} {[%emt
00:00:18]} 12. Qc2 {[%clk 00:13:31]} {[%emt 00:00:53]} e5 {[%clk 00:13:14]}
{[%emt 00:01:05]} 13. Nb3 {[%clk 00:12:40]} {[%emt 00:00:55]} Nb4 {[%clk
00:12:33]} {[%emt 00:00:47]} 14. Qd1 {[%clk 00:12:12]} {[%emt 00:00:33]} a5
{[%clk 00:10:29]} {[%emt 00:02:10]} 15. c5 {[%clk 00:10:35]} {[%emt 00:01:41]}
a4 {[%clk 00:10:22]} {[%emt 00:00:13]} 16. Nd2 {[%clk 00:10:36]} {[%emt
00:00:04]} a3 {[%clk 00:09:47]} {[%emt 00:00:40]} 17. Qb3 {[%clk 00:10:08]}
{[%emt 00:00:32]} Na6 {[%clk 00:08:41]} {[%emt 00:01:12]} 18. cxd6 {[%clk
00:09:51]} {[%emt 00:00:21]} axb2 {[%clk 00:07:36]} {[%emt 00:01:10]} 19. Qxb2
{[%clk 00:09:40]} {[%emt 00:00:16]} Ne8 {[%clk 00:06:34]} {[%emt 00:01:07]} 20.
dxc7 {[%clk 00:09:28]} {[%emt 00:00:17]} f5 {[%clk 00:06:34]} {[%emt 00:00:05]}
21. Nc4 {[%clk 00:06:56]} {[%emt 00:02:37]} Qxc7 {[%clk 00:06:23]} {[%emt
00:00:16]} 22. Rc1 {[%clk 00:06:56]} {[%emt 00:00:06]} Qd8 {[%clk 00:04:45]}
{[%emt 00:01:42]} 23. Nb6 {[%clk 00:06:40]} {[%emt 00:00:21]} f4 {[%clk
00:04:44]} {[%emt 00:00:07]} 24. Bd2 {[%clk 00:06:31]} {[%emt 00:00:13]} Ra7
{[%clk 00:04:08]} {[%emt 00:00:42]} 25. Nxd7 {[%clk 00:05:05]} {[%emt
00:01:30]} Qxd7 {[%clk 00:04:11]} {[%emt 00:00:02]} 26. Qb6 {[%clk 00:05:09]}
{[%emt 00:00:01]} Ra8 {[%clk 00:03:57]} {[%emt 00:00:19]} 27. Bg4 {[%clk
00:05:08]} {[%emt 00:00:05]} Qd6 {[%clk 00:03:31]} {[%emt 00:00:32]} 28. Qxb7
{[%clk 00:03:13]} {[%emt 00:02:01]} Rb8 {[%clk 00:03:08]} {[%emt 00:00:27]} 29.
Qc6 {[%clk 00:03:07]} {[%emt 00:00:11]} Nb4 {[%clk 00:03:05]} {[%emt 00:00:09]}
30. Qc4 {[%clk 00:03:02]} {[%emt 00:00:09]} Nc7 {[%clk 00:02:39]} {[%emt
00:00:31]} 31. O-O {[%clk 00:02:38]} {[%emt 00:00:28]} h5 {[%clk 00:02:23]}
{[%emt 00:00:23]} 32. Bf3 {[%clk 00:02:33]} {[%emt 00:00:10]} Nba6 {[%clk
00:02:01]} {[%emt 00:00:27]} 33. Qc6 {[%clk 00:02:28]} {[%emt 00:00:09]} Qxc6
{[%clk 00:01:21]} {[%emt 00:00:45]} 34. dxc6 {[%clk 00:02:31]} {[%emt
00:00:02]} Rb2 {[%clk 00:00:49]} {[%emt 00:00:37]} 35. Rfd1 {[%clk 00:02:34]}
{[%emt 00:00:03]} Ne6 {[%clk 00:00:51]} {[%emt 00:00:03]} 36. Be2 {[%clk
00:02:11]} {[%emt 00:00:27]} Nac5 {[%clk 00:00:37]} {[%emt 00:00:19]} 37. Bc4
{[%clk 00:02:09]} {[%emt 00:00:07]} Kh7 {[%clk 00:00:40]} {[%emt 00:00:02]} 38.
Na4 {[%clk 00:02:03]} {[%emt 00:00:10]} Rbb8 {[%clk 00:00:27]} {[%emt
00:00:19]} 39. Nxc5 {[%clk 00:02:02]} {[%emt 00:00:05]} Nxc5 {[%clk 00:00:31]}
{[%emt 00:00:02]} 40. Bd5 {[%clk 00:02:01]} {[%emt 00:00:06]} Nd3 {[%clk
00:00:27]} {[%emt 00:00:09]} 41. Rc3 {[%clk 00:02:02]} {[%emt 00:00:04]} Nb4
{[%clk 00:00:23]} {[%emt 00:00:09]} 42. Rc4 {[%clk 00:01:59]} {[%emt 00:00:08]}
Nxd5 {[%clk 00:00:21]} {[%emt 00:00:07]} 43. exd5 {[%clk 00:02:02]} {[%emt
00:00:02]} e4 {[%clk 00:00:08]} {[%emt 00:00:18]} 44. d6 {[%clk 00:01:59]}
{[%emt 00:00:08]} e3 {[%clk 00:00:09]} {[%emt 00:00:05]} 45. fxe3 {[%clk
00:01:57]} {[%emt 00:00:06]} fxe3 {[%clk 00:00:11]} {[%emt 00:00:03]} 46. Bxe3
{[%clk 00:01:56]} {[%emt 00:00:06]} Be5 {[%clk 00:00:13]} {[%emt 00:00:03]} 47.
c7 {[%clk 00:01:57]} {[%emt 00:00:04]} Ra8 {[%clk 00:00:16]} {[%emt 00:00:03]}
48. d7 {[%clk 00:01:58]} {[%emt 00:00:04]} 1-0